[Event "Czech Championship Women 2022"]
[Site "Jaromerice nad Rokytnou"]
[Date "2022.05.27"]
[Round "7.5"]
[White "Petrova, Kristyna"]
[Black "Lhotska, Anna"]
[Result "0-1"]
[ECO "D45"]
[WhiteElo "2264"]
[BlackElo "2029"]
[Annotator "TA"]
[PlyCount "64"]
[EventDate "2022.05.24"]
[EventType "tourn"]
[EventCountry "CZE"]
[SourceTitle "playchess.com"]
[Source "ChessBase"]
[SourceQuality "1"]
[TimeControl "40/5400+30:1800+30"]

{[%evp 25,64,0,3,0,0,0,35,-37,-27,-28,-28,-30,-35,-32,1,0,39,4,50,3,17,-32,-19,-133,-139,-139,-139,-139,0,0,0,-366,-404,-400,-390,-427,-409,-524,-522,-521,-500]} 1. c4 {[%emt 0:00:03]} c6 {[%emt 0:00:08]} 2. Nc3 {[%emt 0:02:08]} d5 {[%emt 0:00:30]} 3. e3 {[%emt 0:00:14]} Nf6 {[%emt 0:00:42]} 4. Nf3 {[%emt 0:00:23]} e6 {[%emt 0:00:18]} 5. b3 {[%emt 0:02:26]} Bd6 {[%emt 0:00:19]} 6. Bb2 {[%emt 0:00:43]} O-O {[%emt 0:00:20]} 7. Be2 {[%emt 0:08:57]} b6 {[%emt 0:00:27]} 8. O-O {[%emt 0:03:09]} Bb7 {[%emt 0:00:31]} 9. Qc2 {[%emt 0:03:52]} Nbd7 {[%emt 0:00:22]} 10. d4 {[%emt 0:00:30]} Qe7 {[%emt 0:01:28]} 11. e4 {[%emt 0:07:34]} Nxe4 {[%emt 0:01:48]} 12. Nxe4 {[%emt 0:00:32]} dxe4 {[%emt 0:00:06]} 13. Qxe4 {[%emt 0:00:03]} f5 {[%emt 0:02:45]} 14. Qc2 {[%emt 0:27:27] D45: Semi-Slav: 5 e3.} c5 {[%emt 0:02:00]} 15. Rad1 {[%emt 0:05:27]} Rad8 {[%emt 0:17:46] [#]} 16. Qc3 $146 {[%emt 0:12:26]} (16. d5 $14) ({Predecessor:} 16. Rfe1 cxd4 17. Nxd4 Nc5 18. Bf3 Be4 19. Bxe4 fxe4 20. Nc6 Bxh2+ 21. Kxh2 Qc7+ 22. Ne5 {½-½ (73) Aronyak,G (2436)-Erigaisi,A (2559) Chess.com INT 2020}) 16... cxd4 {[%emt 0:10:22]} 17. Qxd4 {[%emt 0:04:42]} Nc5 {[%emt 0:10:05][%cal Od6h2] [#] Hoping for ...Bxh2+!} 18. Qh4 {[%emt 0:01:33]} Qxh4 {[%emt 0:04:47]} 19. Nxh4 {[%emt 0:00:02]} e5 {[%emt 0:00:54]} 20. Nf3 {[%emt 0:02:27]} Rfe8 {[%emt 0:02:18][%cal Bf8e8,Be8d8,Bd8d2][%mdl 32]} 21. Nxe5 {[%emt 0:05:04]} Ne4 {[%emt 0:36:22]} (21... Bxe5 $11 22. Rxd8 Rxd8 23. Bxe5 Re8) 22. Nf3 {[%emt 0:05:27]} (22. Nd3 $14 {is superior.}) 22... Bc5 $11 {[%emt 0:01:45]} 23. Rxd8 {[%emt 0:03:57]} (23. Nd4 $11 {was preferrable.}) 23... Rxd8 $15 {[%emt 0:00:06]} 24. h3 {[%emt 0:02:01]} (24. Ra1 $11) 24... Ng3 $1 $17 {[%emt 0:04:47] Black is more active.} 25. Re1 {[%emt 0:00:37] [#]} Bb4 $1 {[%emt 0:00:18]} 26. fxg3 {[%emt 0:01:00]} Bxe1 {[%emt 0:00:06]} ({Black should play} 26... Bxf3 $17 27. Bxf3 Bxe1 28. Bd5+ Kf8) 27. Nxe1 $11 {[%emt 0:00:42] aiming for Bc1.} Rd2 {[%emt 0:00:11][%csl LRb2,LRe2]} 28. Bd3 $2 {[%emt 0:00:24][%mdl 8192]} Rxb2 $19 {[%emt 0:00:17]} 29. Bxf5 {[%emt 0:00:01]} Rxa2 {[%emt 0:00:19]} 30. Be6+ {[%emt 0:00:49]} Kf8 {[%emt 0:00:05] ...Re2 is the strong threat.} 31. Nf3 {[%emt 0:00:05]} Bxf3 {[%emt 0:00:25]} 32. gxf3 {[%emt 0:00:01]} Rb2 {[%emt 0:00:18] Weighted Error Value: White=0.77/Black=0.21 (precise)} 0-1

[Event "Czech Championship Women 2022"]
[Site "Jaromerice nad Rokytnou"]
[Date "2022.05.28"]
[Round "8.1"]
[White "Pilsova, Karolina"]
[Black "Lhotska, Anna"]
[Result "1-0"]
[ECO "B51"]
[WhiteElo "2229"]
[BlackElo "2029"]
[Annotator "TA"]
[PlyCount "59"]
[EventDate "2022.05.24"]
[EventType "tourn"]
[EventCountry "CZE"]
[SourceTitle "playchess.com"]
[Source "ChessBase"]
[SourceQuality "1"]
[TimeControl "40/5400+30:1800+30"]

{[%evp 9,58,24,32,12,24,31,27,24,15,24,24,0,22,0,53,0,54,72,47,-37,31,-47,-58,-44,-41,-51,17,26,70,45,71,74,93,92,82,65,83,50,130,106,433,129,1781,1551,29995,29996,29996,29997,29997,29998,29999]} 1. e4 {[%emt 0:00:03]} c5 {[%emt 0:00:06]} 2. Nf3 {[%emt 0:00:05]} d6 {[%emt 0:00:04]} 3. Bb5+ {[%emt 0:00:07]} Nd7 {[%emt 0:00:05]} 4. O-O {[%emt 0:00:10]} a6 {[%emt 0:00:04]} 5. Bd3 {[%emt 0:00:16]} Ngf6 {[%emt 0:00:52]} 6. Re1 {[%emt 0:00:20] B51: Sicilian: Moscow Variation (3 Bb5+) without 3...Bd7.} g6 {[%emt 0:00:22]} 7. c3 {[%emt 0:00:18]} Bg7 {[%emt 0:00:21]} 8. Bc2 {[%emt 0:00:22] White has an edge.} O-O {[%emt 0:00:33]} 9. d4 {[%emt 0:00:19]} e5 {[%emt 0:05:18]} 10. a4 {[%emt 0:06:32]} Rb8 {[%emt 0:03:25] [#]} 11. a5 $146 {[%emt 0:03:19]} ({Predecessor:} 11. dxe5 Nxe5 12. Nxe5 dxe5 13. Qxd8 Rxd8 14. Be3 b6 15. f3 Be6 16. a5 bxa5 17. Bc1 {½-½ (65) Amin,B (2707)-Artemiev,V (2761) Danzhou 2019}) 11... Qc7 {[%emt 0:04:52]} (11... cxd4 $11 12. cxd4 b5) 12. h3 {[%emt 0:07:12]} ({White should play} 12. d5 $14) 12... b5 {[%emt 0:05:54]} (12... cxd4 $11 13. cxd4 exd4) 13. axb6 $1 $14 {[%emt 0:00:43]} Nxb6 {[%emt 0:00:12]} 14. Nbd2 {[%emt 0:04:18]} (14. d5 $14) 14... Nh5 {[%emt 0:20:18]} (14... cxd4 $15 15. cxd4 exd4) 15. Nf1 {[%emt 0:16:41]} (15. d5 $14) 15... cxd4 $15 {[%emt 0:11:34]} 16. cxd4 {[%emt 0:00:12]} exd4 {[%emt 0:00:15]} 17. Re2 {[%emt 0:04:19]} d5 {[%emt 0:03:33]} (17... Re8 $15) 18. e5 $11 {[%emt 0:01:36]} Nc4 {[%emt 0:08:58][%cal Rc4e5]} 19. g4 {[%emt 0:13:04]} ({Much worse is} 19. Qxd4 Re8 $11) 19... Nxe5 {[%emt 0:02:00]} 20. Nxe5 {[%emt 0:00:57]} Bxe5 {[%emt 0:00:05]} 21. gxh5 {[%emt 0:00:34]} Bxh3 {[%emt 0:02:36]} 22. Qe1 {[%emt 0:06:41] Hoping for hxg6.} Bd6 {[%emt 0:05:42]} 23. Bh6 $1 {[%emt 0:01:10] Threatens to win with Qd2.} Qd7 {[%emt 0:02:44]} 24. f3 $1 $36 {[%emt 0:05:49][%mdl 2048] Black must now prevent Qh4. White is really pushing. Really sharp!} ({Not} 24. Rxa6 $2 Qg4+ 25. Ng3 Qf3 $1 $19) 24... Rfc8 $2 {[%emt 0:07:26][%mdl 8192]} (24... Rfe8 $16 {is a better chance.}) 25. Bd3 $2 {[%emt 0:01:19]} (25. Qh4 $1 $18 {[%cal Rh4f6] and the rest is easy. Intending Qf6 and mate.} Rb6 26. Ba4) 25... Kh8 $2 {[%emt 0:03:11][%mdl 8192] Black cannot hold the game after this.} (25... Rb3 $2 {[#]} 26. Rxa6 $1 Rxd3 27. Rxd6 $1 $18 {[%mdl 512]}) (25... Bf5 $16 26. Bxa6 Re8) 26. Qh4 $18 {[%emt 0:01:28]} Bf8 {[%emt 0:04:59]} 27. Qf6+ {[%emt 0:00:54] White mates.} Kg8 {[%emt 0:00:05]} 28. Bxf8 {[%emt 0:00:08]} Rxf8 {[%emt 0:01:33]} 29. h6 {[%emt 0:00:05][%csl Gh6][%cal Rf6g7]} Rfe8 {[%emt 0:00:30]} 30. Qg7# {[%emt 0:00:08] Weighted Error Value: White=0.45/Black=0.79} 1-0

[Event "Czech Championship Women 2022"]
[Site "Jaromerice nad Rokytnou"]
[Date "2022.05.28"]
[Round "8.2"]
[White "Sikorova, Olga"]
[Black "Petrova, Kristyna"]
[Result "1-0"]
[ECO "B13"]
[WhiteElo "2173"]
[BlackElo "2264"]
[Annotator "TA"]
[PlyCount "139"]
[EventDate "2022.05.24"]
[EventType "tourn"]
[EventCountry "CZE"]
[SourceTitle "playchess.com"]
[Source "ChessBase"]
[SourceQuality "1"]
[TimeControl "40/5400+30:1800+30"]

{[%evp 16,139,0,-8,-9,-25,0,-50,-50,-53,-52,-47,-53,-49,-69,-70,-70,-79,-57,-82,-66,-95,-97,-96,-92,-105,-115,-95,0,0,0,0,0,0,22,19,27,20,0,-31,0,6,6,5,235,207,232,233,244,241,243,241,307,283,270,242,372,369,351,336,301,281,274,263,466,466,464,359,466,393,457,461,386,289,278,278,427,404,411,374,5481,10925,2153,931,12846,12847,12848,12846,12846,12847,12850,27999,27999,27999,27999,27999,27999,27999,27999,27999,27994,27994,27998,27998,27999,27998,27996,27998,27999,27998,27999,27999,27999,27998,27999,27999,27999,27999,27996,27999,27998,27999,27999,27999,27999,27999]} 1. Nf3 {[%emt 0:00:04]} c5 {[%emt 0:00:06]} 2. c4 {[%emt 0:00:15]} Nc6 {[%emt 0:00:05]} 3. Nc3 {[%emt 0:00:11]} g6 {[%emt 0:01:02]} 4. e3 {[%emt 0:01:21]} Nf6 {[%emt 0:00:17]} 5. d4 {[%emt 0:00:21]} cxd4 {[%emt 0:00:07]} 6. exd4 {[%emt 0:00:06]} d5 {[%emt 0:00:10]} 7. Bg5 {[%emt 0:02:23]} Be6 {[%emt 0:01:05]} 8. Bxf6 {[%emt 0:02:17]} exf6 {[%emt 0:00:07]} 9. c5 {[%emt 0:05:33]} Bg7 {[%emt 0:00:26] B13: Caro-Kann: Exchange Variation and Panov-Botvinnik Attack.} 10. Bb5 {[%emt 0:01:52]} O-O {[%emt 0:03:13]} (10... Bg4 {is more complex.} 11. h3 Bxf3 12. Qxf3 O-O) 11. Bxc6 {[%emt 0:02:20]} (11. h3 $1 $11) 11... bxc6 $15 {[%emt 0:00:03] Black is slightly better.} 12. O-O {[%emt 0:00:46]} Bg4 {[%emt 0:11:38]} 13. h3 {[%emt 0:02:48]} Bxf3 {[%emt 0:00:14]} 14. Qxf3 {[%emt 0:00:02]} Rb8 {[%emt 0:02:01]} 15. b3 {[%emt 0:11:39]} f5 {[%emt 0:01:59]} 16. Rfd1 {[%emt 0:07:51]} Qh4 {[%emt 0:16:29]} (16... Rb4 $5 {[%cal Rb4d4]} 17. Ne2 Re8 $17) 17. Ne2 {[%emt 0:08:45]} Rfe8 {[%emt 0:01:21] [#]} 18. Rd3 $146 {[%emt 0:08:35]} ({Predecessor:} 18. Kf1 Re4 19. Qg3 Qd8 20. f3 Re3 21. Rab1 a5 22. Rb2 Rb7 23. Nc1 a4 24. Qf2 {½-½ (47) Romanov,E (2626)-Volkov,S (2645) St Petersburg 2017}) 18... Re4 {[%emt 0:05:55][%cal Rg7d4]} 19. Rad1 {[%emt 0:00:07]} Rbe8 {[%emt 0:05:08]} 20. R3d2 {[%emt 0:01:14]} h5 {[%emt 0:08:00]} 21. b4 {[%emt 0:03:43]} Qe7 {[%emt 0:03:59]} ({Better is} 21... Bh6 $17 22. Rb2 Qe7) 22. Nc3 $1 $11 {[%emt 0:09:06]} Re1+ {[%emt 0:08:26]} 23. Kh2 {[%emt 0:00:14]} h4 {[%emt 0:02:37]} 24. Rxe1 {[%emt 0:01:08]} Qxe1 {[%emt 0:00:38]} 25. Rd1 {[%emt 0:00:26]} Qe6 {[%emt 0:03:48]} 26. b5 {[%emt 0:04:18]} cxb5 {[%emt 0:01:29]} 27. Qxd5 {[%emt 0:01:20]} b4 {[%emt 0:01:22]} 28. Qxe6 {[%emt 0:01:02]} fxe6 {[%emt 0:00:01][%mdl 4096] Endgame KRB-KRN} 29. Nb5 {[%emt 0:00:39]} a5 $2 {[%emt 0:02:55] [#] This costs Black the game.} (29... Rb8 $11 30. Nxa7 Ra8) 30. c6 $1 $18 {[%emt 0:05:28][%cal Bc5c6,Bc6c7][%mdl 32] And now Re1 would win.} Rc8 {[%emt 0:03:25]} 31. c7 {[%emt 0:00:56]} a4 {[%emt 0:00:45]} 32. g3 {[%emt 0:01:01]} hxg3+ {[%emt 0:06:21]} 33. fxg3 {[%emt 0:00:02]} ({Don't play} 33. Kxg3 $6 Kf8 34. Rb1 b3 35. axb3 axb3 36. Rxb3 Ke7) 33... b3 {[%emt 0:00:25] [#]} 34. axb3 {[%emt 0:00:18]} axb3 {[%emt 0:00:02]} 35. Rb1 {[%emt 0:01:21]} Bxd4 {[%emt 0:01:15]} (35... Kf8 {is a better defense.} 36. Rxb3 Ke7) 36. Nxd4 {[%emt 0:02:39]} Rxc7 {[%emt 0:00:08]} 37. Rxb3 {[%emt 0:01:29] KRN-KR} e5 {[%emt 0:00:43]} 38. Nf3 {[%emt 0:01:07]} Rc2+ {[%emt 0:00:30]} 39. Kg1 {[%emt 0:00:49]} e4 {[%emt 0:00:18]} (39... Rc1+ 40. Kf2 Rc2+ 41. Ke1 (41. Ke3 Rg2 $16) 41... e4) 40. Nh4 {[%emt 0:08:46]} Rc6 {[%emt 0:03:48]} 41. Rb7 {[%emt 0:34:11]} Rf6 {[%emt 0:35:36]} 42. Rb5 {[%emt 0:00:00]} Kg7 {[%emt 0:00:00]} 43. Ng2 {[%emt 0:00:00]} Kh6 {[%emt 0:00:00]} 44. h4 {[%emt 0:00:00] Kh2 is the strong threat.} Ra6 {[%emt 0:00:00]} 45. Kh2 {[%emt 0:00:00] Black must now prevent Kh3.} Rc6 {[%emt 0:00:00]} (45... Rd6 $142 46. g4 fxg4) 46. Kh3 {[%emt 0:00:00]} Ra6 {[%emt 0:00:00]} 47. Nf4 {[%emt 0:00:00] Hoping for Re5.} Rf6 $2 {[%emt 0:00:00]} (47... Kg7 48. h5 g5) 48. Re5 {[%emt 0:00:00]} Ra6 {[%emt 0:00:00]} 49. Re6 {[%emt 0:00:00]} Rxe6 {[%emt 0:00:00]} 50. Nxe6 {[%emt 0:00:00] KN-K3P} Kh5 {[%emt 0:00:00]} 51. Nd4 {[%emt 0:01:42]} Kh6 {[%emt 0:00:00]} 52. g4 {[%emt 0:03:02]} fxg4+ {[%emt 0:00:00]} 53. Kxg4 {[%emt 0:00:00] KN-KPP} e3 {[%emt 0:00:04] White mates.} 54. Ne2 {[%emt 0:00:12]} Kg7 {[%emt 0:00:23]} 55. Kg5 {[%emt 0:01:26]} Kh7 {[%emt 0:00:43]} 56. Ng3 {[%emt 0:00:02]} Kg7 {[%emt 0:00:16]} 57. Kf4 {[%emt 0:00:13]} Kh6 {[%emt 0:02:48]} 58. Kxe3 {[%emt 0:00:01] KN-KP} g5 {[%emt 0:00:07]} 59. h5 {[%emt 0:00:04]} Kg7 {[%emt 0:00:06]} 60. Ke4 {[%emt 0:00:04]} Kf6 {[%emt 0:00:09]} 61. Kf3 {[%emt 0:00:12]} Kg7 {[%emt 0:00:20]} 62. Kg4 {[%emt 0:00:01]} Kh6 {[%emt 0:00:05]} 63. Ne4 {[%emt 0:00:35]} Kg7 {[%emt 0:00:10]} 64. Nd6 {[%emt 0:00:44]} Kh6 {[%emt 0:00:21]} 65. Nf5+ {[%emt 0:00:03]} Kh7 {[%emt 0:00:03]} 66. Kxg5 {[%emt 0:00:15]} Kh8 {[%emt 0:00:03]} 67. Kg6 {[%emt 0:00:55]} Kg8 {[%emt 0:00:01]} 68. Nd6 {[%emt 0:00:15]} Kh8 {[%emt 0:00:04]} 69. h6 {[%emt 0:00:14][%cal Bh5h6,Bh6h7][%mdl 32]} Kg8 {[%emt 0:00:01]} 70. h7+ {[%emt 0:00:07] Weighted Error Value: White=0.10 (very precise) /Black=0.38} 1-0

[Event "Czech Championship Women 2022"]
[Site "Jaromerice nad Rokytnou"]
[Date "2022.05.28"]
[Round "8.3"]
[White "Novosadova, Kristyna"]
[Black "Nemcova, Karin"]
[Result "1-0"]
[ECO "B01"]
[WhiteElo "2147"]
[BlackElo "2181"]
[Annotator "TA"]
[PlyCount "69"]
[EventDate "2022.05.24"]
[EventType "tourn"]
[EventCountry "CZE"]
[SourceTitle "playchess.com"]
[Source "ChessBase"]
[SourceQuality "1"]
[TimeControl "40/5400+30:1800+30"]

{[%evp 10,69,40,26,31,26,60,84,104,-10,-9,-216,86,53,56,-22,0,-6,-31,-183,-194,-179,-190,-177,-180,-234,-243,-245,278,262,279,253,558,522,534,539,649,647,624,639,619,482,497,459,616,607,591,590,561,439,760,733,829,610,607,597,862,839,1165,1150,29983,29984]} 1. e4 {[%emt 0:00:05]} d5 {[%emt 0:00:06]} 2. exd5 {[%emt 0:00:24]} Qxd5 {[%emt 0:00:07]} 3. Nc3 {[%emt 0:00:17]} Qa5 {[%emt 0:00:09]} 4. d4 {[%emt 0:00:15]} Nf6 {[%emt 0:00:11]} 5. Bd2 {[%emt 0:00:30]} Bg4 {[%emt 0:00:25]} 6. Nf3 {[%emt 0:01:57]} e6 {[%emt 0:01:52] B01: Scandinavian Defence.} 7. h3 {[%emt 0:09:39]} Bxf3 {[%emt 0:05:30]} 8. Qxf3 {[%emt 0:00:09]} (8. gxf3 Qb6 $15) 8... Nc6 {[%emt 0:04:52] [#] White is better.} 9. Nb5 $146 {[%emt 0:07:05]} (9. Ne4 $1 $16 {[%cal Re4f6]} Qb6 10. Nxf6+ gxf6 11. O-O-O) ({Predecessor:} 9. Bc4 a6 10. Nd5 Bb4 11. Nxb4 Nxb4 12. Qxb7 Rd8 13. Qxb4 {1-0 (13) Norkeliunas,S-Griksaite,E (1235) Vilnius 2018}) 9... Qb6 $1 $11 {[%emt 0:01:11] ...a6 is the strong threat.} 10. a4 $2 {[%emt 0:04:45]} (10. c4 $1 $11 Bb4 11. Bxb4 Nxb4 12. Qb3) 10... a5 $2 {[%emt 0:08:35]} ({Don't play} 10... Nxd4 11. Nxd4 Qxd4 12. Bb5+ (12. Qxb7 Qe4+ 13. Qxe4 Nxe4 $18) 12... Ke7 13. Qxb7 Qe4+ 14. Qxe4 Nxe4 15. Bc6 Nxd2 16. Bxa8 $18) (10... a6 $19 11. Nc3 Nxd4) 11. O-O-O {[%emt 0:04:23] White is more active.} Nb4 {[%emt 0:07:49]} 12. c4 {[%emt 0:08:49]} (12. c3 $14) 12... c6 {[%emt 0:02:45]} 13. c5 $36 {[%emt 0:01:20][%mdl 2048] White is pushing.} Qd8 {[%emt 0:00:50]} 14. Bf4 $2 {[%emt 0:01:04]} cxb5 $19 {[%emt 0:14:40]} 15. Qxb7 {[%emt 0:00:18]} Be7 {[%emt 0:00:19] Hoping for ...0-0.} 16. Bxb5+ {[%emt 0:00:10]} Kf8 {[%emt 0:00:11]} 17. Bc7 {[%emt 0:03:13]} (17. Kb1 {was necessary.}) 17... Qd5 {[%emt 0:03:37]} 18. c6 {[%emt 0:00:48]} Qb3 $4 {[%emt 0:00:55][%mdl 8192]} 19. Qxa8+ $18 {[%emt 0:01:26]} Ne8 {[%emt 0:00:08][%csl Gb4][%cal Rb3c2] [#]} 20. Kd2 {[%emt 0:02:37][%cal Bc1d2,Bd2e2,Be2e1,Be1f1][%mdl 32]} ({Stronger than} 20. Rd2 Na2+ 21. Kb1 Nc3+ 22. Kc1 Na2+ 23. Kb1 Nc3+ 24. Kc1 Na2+ $11) 20... Bg5+ {[%emt 0:09:19]} (20... Qc2+ {is a better chance.} 21. Ke1 g6) 21. Ke2 {[%emt 0:11:52] White wants to mate with Bd6+.} Qc2+ {[%emt 0:04:35]} 22. Ke1 {[%emt 0:00:31] aiming for Bd6+.} g6 {[%emt 0:00:50]} 23. Bxa5 {[%emt 0:09:38]} Qe4+ {[%emt 0:03:22]} 24. Kf1 {[%emt 0:00:26]} Nd5 {[%emt 0:00:47]} 25. Be2 {[%emt 0:02:35]} Kg7 {[%emt 0:02:10]} 26. Qa6 {[%emt 0:04:35]} Nf4 {[%emt 0:04:53]} 27. Bf3 {[%emt 0:00:32]} Qc2 {[%emt 0:00:11]} 28. Qb5 {[%emt 0:02:39]} Nd5 {[%emt 0:00:45]} 29. Qc5 {[%emt 0:03:13] Inhibits Nd6.} Qxb2 {[%emt 0:03:16]} (29... Qxa4 $142 30. c7 Nef6) 30. c7 {[%emt 0:01:10]} Bh4 {[%emt 0:02:20]} 31. Be2 {[%emt 0:00:12]} Nexc7 {[%emt 0:04:09]} 32. Bxc7 {[%emt 0:00:08]} Nc3 {[%emt 0:01:04]} 33. Re1 {[%emt 0:03:19] Strongly threatening Be5+.} Ra8 {[%emt 0:01:28]} 34. Be5+ {[%emt 0:00:49]} f6 {[%emt 0:03:06]} 35. Qe7+ {[%emt 0:00:33] Quite a comeback for White.  Weighted Error Value: White=0.53/Black=0.83} 1-0

[Event "Czech Championship Women 2022"]
[Site "Jaromerice nad Rokytnou"]
[Date "2022.05.28"]
[Round "8.4"]
[White "Koubova, Anna Marie"]
[Black "Zelbova, Lada"]
[Result "1/2-1/2"]
[ECO "E00"]
[WhiteElo "2115"]
[BlackElo "1967"]
[Annotator "TA"]
[PlyCount "89"]
[EventDate "2022.05.24"]
[EventType "tourn"]
[EventCountry "CZE"]
[SourceTitle "playchess.com"]
[Source "ChessBase"]
[SourceQuality "1"]
[TimeControl "40/5400+30:1800+30"]

{[%evp 10,89,36,25,65,9,50,55,72,16,68,19,35,10,15,0,0,-84,-82,-81,-92,-137,-120,-169,-104,-108,-102,-104,-110,-99,-106,-121,-96,-114,-124,-115,-102,-101,-102,-97,-92,-125,-127,-136,-101,-87,-108,-77,-91,-84,-93,-125,0,0,0,0,0,0,0,0,0,0,0,0,0,0,0,0,0,0,0,0,0,0,0,0,0,0,0,0,0,0]} 1. d4 {[%emt 0:00:08]} Nf6 {[%emt 0:00:09]} 2. c4 {[%emt 0:00:12]} e6 {[%emt 0:00:07]} 3. g3 {[%emt 0:00:13]} Bb4+ {[%emt 0:02:39]} 4. Bd2 {[%emt 0:00:17]} Qe7 {[%emt 0:00:49]} 5. Bg2 {[%emt 0:00:50]} Nc6 {[%emt 0:02:54]} 6. e3 {[%emt 0:00:37]} d5 {[%emt 0:03:25] E00: Catalan Bogo-Indian (3 g3 Bb4+).} 7. Nc3 {[%emt 0:07:38]} (7. a3 $14 Bxd2+ 8. Nxd2) 7... Bxc3 {[%emt 0:07:49]} 8. Bxc3 {[%emt 0:04:01]} dxc4 {[%emt 0:04:28] White is slightly better.} 9. Nf3 {[%emt 0:01:20] [#]} (9. Qa4 $16 Bd7 10. Qxc4) 9... O-O $146 {[%emt 0:01:31]} ({Better is} 9... b5 $11) ({Predecessor:} 9... Ne4 10. Qa4 Nxc3 11. bxc3 O-O 12. Qxc4 e5 13. d5 Na5 14. Qb4 Qxb4 15. cxb4 Nc4 {1-0 (32) De Waard,M (2150)-Danielsen,M (2015) Ankara 2007}) 10. O-O {[%emt 0:01:04]} (10. Qa4 $1 $14 {deserves consideration.}) 10... Bd7 {[%emt 0:10:13]} 11. Re1 {[%emt 0:14:02]} Nd5 {[%emt 0:12:00]} 12. Rc1 {[%emt 0:14:01]} b5 {[%emt 0:06:16]} 13. e4 {[%emt 0:00:54]} (13. Bd2 $11 {keeps the balance.}) 13... Nxc3 $17 {[%emt 0:00:58]} 14. Rxc3 {[%emt 0:00:15]} Nb4 {[%emt 0:01:05]} 15. a3 {[%emt 0:09:05]} Nd3 {[%emt 0:02:12]} 16. Re2 {[%emt 0:00:14]} (16. Rxd3 $17 {was worth a try.} cxd3 17. Qxd3) 16... e5 {[%emt 0:02:28]} (16... c5 $19 17. a4 a6) 17. Nxe5 {[%emt 0:03:12]} Nxe5 {[%emt 0:00:09]} 18. dxe5 {[%emt 0:00:05]} Rad8 {[%emt 0:06:52] And now ...Bg4 would win.} 19. Rd2 {[%emt 0:02:45] [#]} Bg4 $1 {[%emt 0:04:29]} 20. f3 {[%emt 0:02:48]} (20. Bf3 Rxd2) 20... Bc8 {[%emt 0:00:10]} 21. f4 {[%emt 0:01:34] [#]} Bg4 $1 {[%emt 0:02:42][%mdl 512]} 22. Bf3 {[%emt 0:03:08]} Bxf3 {[%emt 0:03:15]} 23. Rxf3 {[%emt 0:00:13]} Rxd2 {[%emt 0:00:58]} 24. Qxd2 {[%emt 0:00:05][%mdl 4096] Endgame KQR-KQR} Rd8 {[%emt 0:00:47]} 25. Qe2 {[%emt 0:14:54]} h6 {[%emt 0:01:33]} 26. Rf1 {[%emt 0:01:36]} Qc5+ {[%emt 0:01:42]} 27. Kg2 {[%emt 0:02:03]} Rd3 {[%emt 0:01:50]} 28. Qg4 {[%emt 0:05:34]} Rd2+ {[%emt 0:05:27]} 29. Kh3 {[%emt 0:01:07] [#]} Qe7 $1 {[%emt 0:05:52]} ({Much worse is} 29... Rxb2 $6 30. Rd1 Qe7 31. Rd7 $11) 30. Rd1 {[%emt 0:01:19] [#]} Rxd1 {[%emt 0:01:47]} ({Reject} 30... Rxb2 $6 31. Rd7 Qe6 32. Rd8+ (32. Qxe6 fxe6 33. Rxc7 a5 $11) 32... Kh7 33. Qxe6 fxe6 34. f5 $11) ({Black should try} 30... Rd3 $1 $17 {[%cal Oh6h5] Strongly threatening ...h5!} 31. Rc1 Qe8) 31. Qxd1 {[%emt 0:00:10] KQ-KQ. The position is equal.} Kh7 {[%emt 0:01:39]} 32. Qd4 {[%emt 0:01:23]} a6 {[%emt 0:02:04]} 33. Kg2 {[%emt 0:00:45]} Kg8 {[%emt 0:02:54]} 34. Qd5 {[%emt 0:07:35]} c3 {[%emt 0:01:33]} 35. bxc3 {[%emt 0:00:16]} Qxa3 {[%emt 0:00:45]} 36. Qd8+ {[%emt 0:00:18]} Kh7 {[%emt 0:00:31] Hoping for ...Qb2+.} 37. Qxc7 {[%emt 0:00:41]} Qb2+ {[%emt 0:00:44]} 38. Kh3 {[%emt 0:00:21] Threatens to win with f5.} Qb3 {[%emt 0:01:20]} 39. Qa5 {[%emt 0:02:15]} Qa4 {[%emt 0:01:08]} 40. Qc7 {[%emt 0:00:37]} Qc4 {[%emt 0:00:14]} 41. Qa7 {[%emt 0:07:51]} Qe6+ {[%emt 0:11:56]} 42. Kg2 {[%emt 0:00:51]} Qc4 {[%emt 0:02:27]} 43. Kh3 {[%emt 0:03:35]} Qe6+ {[%emt 0:01:15]} 44. f5 {[%emt 0:07:29]} Qc4 {[%emt 0:00:46]} 45. Qxa6 {[%emt 0:04:17] And White is the lucky defender.  Weighted Error Value: White=0.19 (very precise) /Black=0.13 (very precise)} 1/2-1/2